lending/lending_fUSD_20250121
["ID","MTS","AMOUNT","RATE_DAILY","PERIOD"]
[349881993,1737475882301,-830.18,0.00021369,2]
[349881994,1737475882312,-500.0,0.00021369,2]
[349881995,1737475882321,-500.0,0.00021369,2]
[349881996,1737475882331,-500.0,0.00021369,2]
[349881997,1737475882341,-500.0,0.00021369,2]
[349881998,1737475882351,-545.76,0.00021369,2]
[349881999,1737475882360,-409.57622733,0.00021369,2]
[349882000,1737475882370,-500.0,0.00021369,2]
[349882001,1737475882380,-500.0,0.00021369,2]
[349882002,1737475882390,-500.0,0.00021369,2]
[349882003,1737475882399,-500.0,0.00021369,2]
[349882004,1737475882409,-500.0,0.00021369,2]
[349882005,1737475882419,-500.0,0.00021369,2]
[349882006,1737475882428,-500.0,0.00021369,2]
[349882007,1737475882438,-522.0083728,0.00021369,2]
[349882008,1737475882447,-500.0,0.00021369,2]
[349882009,1737475882458,-500.0,0.00021369,2]
[349882010,1737475882468,-500.0,0.00021369,2]
[349882011,1737475882478,-500.0,0.00021369,2]
[349882012,1737475882488,-500.0,0.00021369,2]
[349882013,1737475882498,-500.0,0.00021369,2]
[349882014,1737475882508,-500.0,0.00021369,2]
[349882015,1737475882520,-500.0,0.00021369,2]
[349882016,1737475882533,-500.0,0.00021369,2]
[349882017,1737475882542,-547.61,0.00021369,2]
[349882018,1737475882553,-500.0,0.00021369,2]
[349882019,1737475882563,-500.0,0.00021369,2]
[349882020,1737475882572,-500.0,0.00021369,2]
[349882021,1737475882583,-500.0,0.00021369,2]
[349882022,1737475882593,-500.0,0.00021369,2]
[349882023,1737475882604,-500.0,0.00021369,2]
[349882024,1737475882615,-805.15,0.00021369,2]
[349882025,1737475882626,-500.0,0.00021369,2]
[349882026,1737475882637,-500.0,0.00021369,2]
[349882027,1737475882647,-500.0,0.00021369,2]
[349882028,1737475882656,-500.0,0.00021369,2]
[349882029,1737475882667,-500.0,0.00021369,2]
[349882030,1737475882677,-516.5431948,0.00021369,2]
[349882031,1737475882686,-618.31,0.00021369,2]
[349882032,1737475882696,-520.16,0.00021369,2]
[349882033,1737475882706,-1629.69,0.00021369,2]
[349882034,1737475882716,-500.0,0.00021369,2]
[349882035,1737475882726,-500.0,0.00021369,2]
[349882036,1737475882736,-694.56,0.00021369,2]
[349882037,1737475882746,-500.0,0.00021369,2]
[349882038,1737475882756,-500.0,0.00021369,2]
[349882039,1737475882769,-1263.31,0.00021369,2]
[349882040,1737475882781,-500.0,0.00021369,2]
[349882041,1737475882791,-500.0,0.00021369,2]
[349882042,1737475882801,-500.0,0.00021369,2]
[349882043,1737475882815,-2691.07,0.00021369,2]
[349882044,1737475882825,-645.13,0.00021369,2]
[349882045,1737475882835,-890.72,0.00021369,2]
[349882046,1737475882845,-2253.63,0.00021369,2]
[349882047,1737475882857,-500.0,0.00021369,2]
[349882048,1737475882867,-500.0,0.00021369,2]
[349882049,1737475882877,-1452.22,0.00021369,2]
[349882050,1737475882887,-1116.63,0.00021369,2]
[349882051,1737475882898,-547.79,0.00021369,2]
[349882052,1737475882908,-915.26,0.00021369,2]
[349882053,1737475882918,-3864.5,0.00021369,2]
[349882054,1737475882928,-807.11,0.00021369,2]
[349882055,1737475882938,-2795.23,0.00021369,2]
[349882056,1737475882948,-657.52,0.00021369,2]
[349882057,1737475882958,-425.75,0.00021369,2]
[349882058,1737475882968,-1087.67,0.00021369,2]
[349882059,1737475882979,-1302.3,0.00021369,2]
[349882060,1737475882989,-1232.01,0.00021369,2]
[349882061,1737475882999,-500.0,0.00021369,2]
[349882062,1737475883009,-1499.37,0.00021369,2]
[349882063,1737475883020,-1231.63,0.00021369,2]
[349882064,1737475883032,-500.0,0.00021369,2]
[349882065,1737475883042,-1601.77,0.00021369,2]
[349882066,1737475883051,-646.72,0.00021369,2]
[349882067,1737475883061,-967.09,0.00021369,2]
[349882068,1737475883071,-492.66,0.00021369,2]
[349882069,1737475883080,-2471.72,0.00021369,2]
[349882070,1737475883090,-762.34,0.00021369,2]
[349882071,1737475883100,-1839.77,0.00021369,2]
[349882072,1737475883110,-1125.91,0.00021369,2]
[349882073,1737475883119,-940.03,0.00021369,2]
[349882074,1737475883130,-2525.34,0.00021369,2]
[349882075,1737475883139,-1709.51,0.00021369,2]
[349882076,1737475883150,-800.12,0.00021369,2]
[349882077,1737475883160,-1062.88,0.00021369,2]
[349882078,1737475883171,-739.24,0.00021369,2]
[349882079,1737475883182,-816.14,0.00021369,2]
[349882080,1737475883192,-3463.05,0.00021369,2]
[349882081,1737475883202,-500.0,0.00021369,2]
[349882082,1737475883212,-500.0,0.00021369,2]
[349882083,1737475883222,-2220.19,0.00021369,2]
[349882084,1737475883232,-500.0,0.00021369,2]
[349882085,1737475883242,-1566.92,0.00021369,2]
[349882086,1737475883252,-3463.88,0.00021369,2]
[349882087,1737475883263,-3439.97,0.00021369,2]
[349882088,1737475883275,-500.0,0.00021369,2]
[349882089,1737475883289,-1334.36,0.00021369,2]
[349882090,1737475883300,-2915.12,0.00021369,2]
[349882091,1737475883310,-1921.68,0.00021369,2]
[349882092,1737475883321,-1294.29,0.00021369,2]
[349882093,1737475883331,-1567.67,0.00021369,2]
[349882094,1737475883342,-663.86,0.00021369,2]
[349882095,1737475883352,-1643.03,0.00021369,2]
[349882096,1737475883363,-1240.69,0.00021369,2]
[349882097,1737475883374,-622.35,0.00021369,2]
[349882098,1737475883387,-500.0,0.00021369,2]
[349882099,1737475883399,-1130.45,0.00021369,2]
[349882100,1737475883410,-931.92,0.00021369,2]
[349882101,1737475883422,-1812.77,0.00021369,2]
[349882102,1737475883434,-1151.69,0.00021369,2]
[349882103,1737475883444,-2024.14,0.00021369,2]
[349882104,1737475883454,-6176.7,0.00021369,2]
[349882105,1737475883465,-500.0,0.00021369,2]
[349882106,1737475883476,-648.2,0.00021369,2]
[349882107,1737475883487,-1172.98,0.00021369,2]
[349882108,1737475883497,-2700.92,0.00021369,2]
[349882109,1737475883507,-500.0,0.00021369,2]
[349882110,1737475883518,-1124.3,0.00021369,2]
[349882111,1737475883531,-2422.11,0.00021369,2]
[349882112,1737475883542,-744.53,0.00021369,2]
[349882113,1737475883552,-1761.76,0.00021369,2]
[349882114,1737475883563,-5036.59,0.00021369,2]
[349882115,1737475883573,-820.74,0.00021369,2]
[349882116,1737475883585,-1108.09,0.00021369,2]
[349882117,1737475883596,-1138.49,0.00021369,2]
[349882118,1737475883606,-709.86,0.00021369,2]
[349882119,1737475883617,-2383.66,0.00021369,2]
[349882120,1737475883628,-882.47,0.00021369,2]
[349882121,1737475883639,-500.0,0.00021369,2]
[349882122,1737475883650,-848.97,0.00021369,2]
[349882123,1737475883661,-500.0,0.00021369,2]
[349882124,1737475883675,-500.0,0.00021369,2]
[349882125,1737475883688,-693.82,0.00021369,2]
[349882126,1737475883700,-500.0,0.00021369,2]
[349882127,1737475883710,-1534.92,0.00021369,2]
[349882128,1737475883721,-557.69,0.00021369,2]
[349882129,1737475883732,-2099.21,0.00021369,2]
[349882130,1737475883743,-1760.35,0.00021369,2]
[349882131,1737475883754,-953.39,0.00021369,2]
[349882132,1737475883767,-500.0,0.00021369,2]
[349882133,1737475883779,-500.0,0.00021369,2]
[349882134,1737475883791,-1525.72,0.00021369,2]
[349882135,1737475883804,-4340.86,0.00021369,2]
[349882136,1737475883814,-677.18,0.00021369,2]
[349882137,1737475883824,-590.27,0.00021369,2]
[349882138,1737475883834,-513.99,0.00021369,2]
[349882139,1737475883844,-500.0,0.00021369,2]
[349882140,1737475883854,-500.0,0.00021369,2]
[349882141,1737475883866,-500.0,0.00021369,2]
[349882142,1737475883878,-395.40556681,0.00021369,2]
[349882143,1737475883886,-849.56,0.00021369,2]
[349882144,1737475883896,-500.0,0.00021369,2]
[349882145,1737475883906,-500.0,0.00021369,2]
[349882146,1737475883915,-2441.3,0.00021369,2]
[349882147,1737475883926,-500.0,0.00021369,2]
[349882148,1737475883935,-500.0,0.00021369,2]
[349882149,1737475883946,-671.34,0.00021369,2]
[349882150,1737475883956,-1268.14,0.00021369,2]
[349882151,1737475883966,-536.19,0.00021369,2]
[349882152,1737475883977,-150.0,0.00021372,2]
[349882153,1737475883985,-150.0,0.00021381,2]
[349882154,1737475883994,-150.0,0.00021382,2]
[349882155,1737475884005,-376.33826723,0.00021383,2]
[349882156,1737475884014,-150.0,0.00021391,2]
[349882157,1737475884022,-150.0,0.00021396,2]
[349882158,1737475884035,-2447.06897,0.000214,2]
[349882159,1737475884047,-376.33826723,0.00021417,2]
[349882160,1737475884058,-150.0,0.00021419,2]
[349882161,1737475884068,-1000.0,0.00021423,2]
[349882162,1737475884078,-150.0,0.00021432,2]
[349882163,1737475884090,-150.0,0.00021435,2]
[349882164,1737475884101,-150.0,0.00021436,2]
[349882165,1737475884111,-1051.05,0.00021437,7]
[349882166,1737475884122,-1051.05,0.00021437,7]
[349882167,1737475884131,-376.33826723,0.00021452,2]
[349882168,1737475884141,-150.0,0.00021454,2]
[349882169,1737475884150,-1000.0,0.00021456,2]
[349882170,1737475884159,-150.0,0.00021459,2]
[349882171,1737475884169,-150.0,0.00021459,2]
[349882172,1737475884177,-150.0,0.00021464,2]
[349882173,1737475884189,-150.0,0.00021479,4]
[349882174,1737475884199,-150.0,0.00021479,4]
[349882175,1737475884210,-150.0,0.00021479,4]
[349882176,1737475884224,-150.00000001,0.00021479,4]
[349882177,1737475884238,-11706.0,0.00021479,2]
[349882178,1737475884249,-376.33826723,0.00021486,2]
[349882179,1737475884259,-150.0,0.00021489,2]
[349882180,1737475884269,-6344.1859712,0.00021489,2]
[349882181,1737475884285,-6029.724975,0.0002149,2]
[349882182,1737475884295,-653.2376065,0.0002149,2]
[349882183,1737475884306,-17285.7802572,0.0002149,2]
[349882184,1737475884316,-954.9040234,0.0002149,2]
[349882185,1737475884327,-2359.040563,0.0002149,2]
[349882186,1737475884337,-1003.17227936,0.000215,2]
[349882187,1737475884347,-294113.93202239,0.000215,15]
[349882188,1737475884573,-3541.28907898,0.000215,15]
[349882189,1737475885363,-9227.10760318,0.000215,15]
[349882190,1737475885762,-500.0,0.00019452,2]
[349882191,1737475885772,-500.0,0.00019726,2]
[349882192,1737475885785,-500.0,0.0002,2]
[349882193,1737475885799,-566.55,0.00020273,2]
[349882194,1737475885810,-1147.33477445,0.000215,15]
[349882195,1737475885822,-1631.14693322,0.000215,15]
[349882196,1737475885834,-947.72946,0.000215,15]
[349882197,1737475885847,-1559.25,0.000215,15]
[349882198,1737475885859,-494.1800016,0.000215,15]
[349882199,1737475885878,-2621.89219,0.000201,2]
[349882200,1737475885906,-655159.06676149,0.000215,15]
[349882201,1737475885921,-2757.921871,0.000215,15]
[349882202,1737475885934,-896.82497611,0.000215,15]
[349882203,1737475885947,-383.57266039,0.000215,15]
[349882204,1737475885959,-5620.00299894,0.000215,15]
[349882205,1737475885972,-751.950025,0.000215,15]
[349882206,1737475885984,-252.40499995,0.000215,15]
[349882207,1737475885996,-384.7999997,0.000215,15]
[349882208,1737475886008,-347.3299999,0.000215,15]
[349882209,1737475886019,-309.0,0.000215,15]
[349882210,1737475886035,-1573.4,0.000215,15]
[349882211,1737475886047,-370.05,0.000215,15]
[349882212,1737475886060,-283.92,0.000215,15]
[349882213,1737475886072,-962.70634916,0.000215,15]
[349882214,1737475886084,-22958.01240869,0.000215,15]
[349882215,1737475886097,-17824.5369106,0.000215,15]
[349882216,1737475886113,-7910.800422,0.000215,15]
[349882217,1737475886130,-2446.67393065,0.000215,15]
[349882218,1737475886143,-2367.09271318,0.000215,15]
[349882219,1737475886155,-281.6240565,0.000215,15]
[349882220,1737475886168,-522.448578,0.000215,15]
[349882221,1737475886180,-50307.01170216,0.000215,15]
[349882222,1737475886356,-500.0,0.00019178,2]
[349882223,1737475886368,-500.0,0.00019178,2]
[349882224,1737475886380,-500.0,0.00019178,2]
[349882225,1737475886394,-500.0,0.00019452,2]
[349882226,1737475886407,-500.0,0.00019452,2]
[349882227,1737475886418,-500.0,0.00019726,2]
[349882228,1737475886430,-500.0,0.0002,2]
[349882229,1737475886443,-500.0,0.00020273,2]
[349882230,1737475886457,-151.0,0.00020273,2]
[349882231,1737475886470,-500.0,0.00020547,2]
[349882232,1737475886482,-500.0,0.00020821,2]
[349882233,1737475886494,-160.409155,0.00020821,2]
[349882234,1737475886508,-500.0,0.00021095,2]
[349882235,1737475886520,-603.38,0.00021369,2]
[349882236,1737475886530,-4401.82443408,0.000215,15]
[349882237,1737475886552,-2367.26859173,0.000215,15]
[349882238,1737475886565,-676.4898,0.000215,15]
[349882239,1737475886578,-115020.23325801,0.000215,15]
[349882240,1737475886599,-500.0,0.00019726,2]
[349882241,1737475886610,-91091.96484713,0.000215,15]
[349882242,1737475886623,-1140.12481583,0.000215,15]
[349882243,1737475886635,-6197.33498748,0.000215,15]
[349882244,1737475886647,-1924.1438041,0.000215,15]
[349882245,1737475886660,-9067.50321081,0.000215,15]
[349882246,1737475886875,-500.0,0.00019178,2]
[349882247,1737475886885,-500.0,0.00019178,2]
[349882248,1737475886895,-500.0,0.00019452,2]
[349882249,1737475886904,-500.0,0.00019726,2]
[349882250,1737475886915,-500.0,0.0002,2]
[349882251,1737475886924,-500.0,0.00020273,2]
[349882252,1737475886934,-500.0,0.00020547,2]
[349882253,1737475886944,-500.0,0.00020821,2]
[349882254,1737475886953,-500.0,0.00021095,2]
[349882255,1737475886964,-500.0,0.00021369,2]
[349882256,1737475886973,-9.89708877,0.000215,15]
[349882257,1737475886992,-540.57039514,0.000215,15]
[349882258,1737475887004,-49848.72428471,0.000215,15]
[349882259,1737475887017,-10730.70180181,0.000215,15]
[349882260,1737475887029,-51291.27367207,0.000215,15]
[349882261,1737475887045,-92819.50099527,0.000215,15]
[349882262,1737475887057,-500.44269413,0.000215,15]
[349882263,1737475887069,-1197.71593899,0.000215,15]
[349882264,1737475887081,-519.35,0.000215,15]
[349882265,1737475887094,-1005.3194044,0.000215,15]
[349882266,1737475912295,202.32,0.0001963,30]
[349882268,1737475950907,158.74,0.00010137,2]
[349882270,1737476430834,150.0,0.00022526,120]
[349882271,1737476800591,192.2,0.0001803,30]
[349882272,1737476800959,192.2,0.00020614,30]
[349882273,1737476835043,151.31,0.00010137,2]
[349882275,1737476850809,150.0,0.00022567,120]
[349882284,1737477005595,1000.0,0.00022,30]
[349882300,1737477031679,-164.86952003,0.000113,2]
[349882301,1737477031693,-1808.15090591,0.00011899,2]
[349882302,1737477031703,-150.0,0.00011999,2]
[349882303,1737477031712,-421.21741406,0.00012,2]
[349882304,1737477031735,-299.24691788,0.00012,2]
[349882305,1737477031791,-19888.2523984,0.00012,2]
[349882306,1737477031803,-4965.893,0.00012,2]
[349882307,1737477032116,-52994.71726089,0.00012,2]
[349882308,1737477032170,-1569.56510515,0.00012,2]
[349882309,1737477032182,-412.40818989,0.00012,2]
[349882310,1737477033126,-14059.96271546,0.00012,2]
[349882311,1737477033290,-261.47349999,0.00012,2]
[349882312,1737477033303,-110071.49999872,0.00012,2]
[349882313,1737477033315,-65366.16963255,0.00012,2]
[349882314,1737477033324,-271.465744,0.00012,2]
[349882315,1737477033334,-616.041906,0.00012979,2]
[349882316,1737477033344,-255.0,0.00013079,2]
[349882317,1737477033354,-670.69,0.000137,2]
[349882318,1737477033364,-150.0,0.00014255,2]
[349882319,1737477033374,-499.61,0.0001591,2]
[349882320,1737477033384,-470.32340738,0.000166,2]
[349882321,1737477033394,-470.32340736,0.000166,2]
[349882322,1737477033404,-470.32340736,0.000166,2]
[349882323,1737477033415,-470.32340736,0.000166,2]
[349882324,1737477033424,-470.32340736,0.000166,2]
[349882325,1737477033434,-470.32340736,0.000166,2]
[349882326,1737477033450,-470.32340736,0.000166,2]
[349882327,1737477033461,-470.32340736,0.000166,2]
[349882328,1737477033472,-470.32340736,0.000166,2]
[349882329,1737477033482,-470.32340736,0.000166,2]
[349882330,1737477033492,-470.32340736,0.000166,2]
[349882331,1737477033503,-470.32340736,0.000166,2]
[349882332,1737477033513,-470.32340736,0.00016624,2]
[349882334,1737477033524,-500.0,0.00016822,2]
[349882336,1737477033534,-470.32340736,0.00016934,2]
[349882338,1737477033544,-470.32340736,0.00017245,2]
[349882340,1737477033554,-250.0,0.00017466,2]
[349882342,1737477033565,-2079.2,0.00017534,2]
[349882344,1737477033576,-470.32340736,0.00017555,2]
[349882346,1737477033585,-2096.89,0.00017605,2]
[349882348,1737477033595,-250.0,0.00017724,2]
[349882350,1737477033605,-4345.76073164,0.00017817,2]
[349882352,1737477033615,-470.32340736,0.00017866,2]
[349882353,1737477033625,-1009.77,0.00017981,2]
[349882356,1737477033636,-250.0,0.00018017,2]
[349882359,1737477033646,-1000.0,0.00018037,2]
[349882362,1737477033657,-1128.65,0.00018082,2]
[349882364,1737477033666,-275.39,0.00018093,2]
[349882367,1737477033676,-167.71,0.00018132,2]
[349882370,1737477033687,-4345.76073164,0.00018169,2]
[349882374,1737477033702,-499.61,0.00018173,2]
[349882377,1737477033712,-470.32340736,0.00018176,2]
[349882379,1737477033722,-10919.06,0.00018286,2]
[349882382,1737477033733,-670.69,0.00018476,2]
[349882386,1737477033743,-470.32340736,0.00018486,2]
[349882389,1737477033753,-4345.76073164,0.0001852,2]
[349882392,1737477033763,-1000.0,0.00018523,2]
[349882395,1737477033773,-178.31,0.00018592,2]
[349882397,1737477033786,-3660.0,0.00018608,2]
[349882400,1737477033796,-176.63,0.00018659,2]
[349882403,1737477033806,-1128.65,0.00018751,2]
[349882406,1737477033816,-470.32340736,0.00018797,2]
[349882409,1737477033825,-4345.76073164,0.00018872,2]
[349882412,1737477033835,-150.0,0.00018936,2]
[349882415,1737477033844,-150.0,0.0001894,2]
[349882418,1737477033854,-159.3,0.00018952,2]
[349882420,1737477033864,-159.3,0.00018959,2]
[349882422,1737477033874,-159.3,0.00018966,2]
[349882424,1737477033883,-159.3,0.00018974,2]
[349882427,1737477033893,-159.3,0.00018981,2]
[349882430,1737477033903,-159.3,0.00018988,2]
[349882433,1737477033912,-159.3,0.00018995,2]
[349882436,1737477033923,-150.0,0.00018998,2]
[349882439,1737477033933,-159.3,0.00019003,2]
[349882442,1737477033945,-159.3,0.0001901,2]
[349882445,1737477033955,-159.3,0.00019017,2]
[349882448,1737477033965,-159.3,0.00019025,2]
[349882452,1737477033975,-159.3,0.00019032,2]
[349882455,1737477033985,-159.3,0.00019039,2]
[349882458,1737477033995,-159.3,0.00019046,2]
[349882461,1737477034005,-670.69,0.00019068,2]
[349882464,1737477034015,-1075.149,0.00019078,2]
[349882466,1737477034024,-159.458,0.00019078,2]
[349882469,1737477034033,-137.17424081,0.00019078,2]
[349882472,1737477034045,-3139.15285919,0.00019078,2]
[349882474,1737477034055,-500.0,0.00019078,2]
[349882476,1737477034065,-21349.8693,0.00019078,2]
[349882478,1737477034075,-5988.9222,0.00019078,2]
[349882480,1737477034085,-991.2566,0.00019078,2]
[349882481,1737477034094,-1562.3109,0.00019078,2]
[349882484,1737477034104,-12065.6658,0.00019078,2]
[349882486,1737477034115,-1377.0926,0.00019078,2]
[349882488,1737477034126,-5000.0,0.00019078,2]
[349882490,1737477034138,-265.9371,0.00019078,2]
[349882492,1737477034148,-470.32340736,0.00019107,2]
[349882493,1737477034158,-670.69,0.00019168,2]
[349882495,1737477034167,-670.69,0.00019168,2]
[349882497,1737477034177,-500.0,0.00019178,2]
[349882499,1737477034187,-398.49748272,0.00019178,2]
[349882501,1737477034201,-300.0,0.00019178,2]
[349882502,1737477034211,-501.74191315,0.00019178,2]
[349882504,1737477034220,-500.0,0.00019178,2]
[349882505,1737477034230,-500.0,0.00019178,2]
[349882507,1737477034239,-500.0,0.00019178,2]
[349882509,1737477034249,-512.16609714,0.00019178,2]
[349882511,1737477034259,-500.0,0.00019178,2]
[349882512,1737477034268,-500.0,0.00019178,2]
[349882514,1737477034278,-500.0,0.00019178,2]
[349882516,1737477034288,-500.0,0.00019178,2]
[349882517,1737477034298,-500.0,0.00019178,2]
[349882519,1737477034307,-500.71739798,0.00019178,2]
[349882520,1737477034317,-500.0,0.00019178,2]
[349882522,1737477034327,-330.33402654,0.00019178,2]
[349882524,1737477034336,-500.0,0.00019178,2]
[349882525,1737477034345,-500.0,0.00019178,2]
[349882527,1737477034355,-500.0,0.00019178,2]
[349882529,1737477034364,-500.0,0.00019178,2]
[349882530,1737477034374,-500.0,0.00019178,2]
[349882532,1737477034384,-500.0,0.00019178,2]
[349882534,1737477034393,-500.0,0.00019178,2]
[349882536,1737477034403,-500.0,0.00019178,2]
[349882537,1737477034413,-500.0,0.00019178,2]
[349882539,1737477034423,-500.0,0.00019178,2]
[349882540,1737477034433,-500.0,0.00019178,2]
[349882541,1737477034443,-500.0,0.00019178,2]
[349882543,1737477034453,-500.0,0.00019178,2]
[349882544,1737477034463,-500.0,0.00019178,2]
[349882545,1737477034472,-514.25,0.00019178,2]
[349882546,1737477034482,-500.0,0.00019178,2]
[349882547,1737477034491,-500.0,0.00019178,2]
[349882548,1737477034501,-500.0,0.00019178,2]
[349882549,1737477034511,-519.48538641,0.00019178,2]
[349882550,1737477034521,-500.0,0.00019178,2]
[349882551,1737477034530,-159.40303725,0.00019178,2]
[349882552,1737477034540,-500.0,0.00019178,2]
[349882553,1737477034549,-500.0,0.00019178,2]
[349882554,1737477034559,-500.0,0.00019178,2]
[349882555,1737477034568,-500.0,0.00019178,2]
[349882556,1737477034578,-254.53454176,0.00019178,2]
[349882557,1737477034588,-500.0,0.00019178,2]
[349882558,1737477034597,-500.0,0.00019178,2]
[349882559,1737477034607,-500.0,0.00019178,2]
[349882560,1737477034616,-500.0,0.00019178,2]
[349882561,1737477034625,-500.0,0.00019178,2]
[349882562,1737477034635,-500.0,0.00019178,2]
[349882563,1737477034645,-500.0,0.00019178,2]
[349882564,1737477034654,-500.0,0.00019178,2]
[349882565,1737477034664,-510.78,0.00019178,2]
[349882566,1737477034674,-500.0,0.00019178,2]
[349882567,1737477034684,-500.0,0.00019178,2]
[349882568,1737477034697,-500.0,0.00019178,2]
[349882569,1737477034707,-500.0,0.00019178,2]
[349882570,1737477034716,-500.0,0.00019178,2]
[349882571,1737477034726,-500.0,0.00019178,2]
[349882572,1737477034735,-500.0,0.00019178,2]
[349882573,1737477034745,-500.0,0.00019178,2]
[349882574,1737477034754,-500.0,0.00019178,2]
[349882575,1737477034764,-500.0,0.00019178,2]
[349882576,1737477034774,-500.0,0.00019178,2]
[349882577,1737477034783,-500.0,0.00019178,2]
[349882578,1737477034793,-502.38346633,0.00019178,2]
[349882579,1737477034802,-500.0,0.00019178,2]
[349882580,1737477034811,-500.0,0.00019178,2]
[349882581,1737477034821,-500.0,0.00019178,2]
[349882582,1737477034831,-500.0,0.00019178,2]
[349882583,1737477034840,-500.0,0.00019178,2]
[349882584,1737477034850,-500.0,0.00019178,2]
[349882585,1737477034859,-501.26898816,0.00019178,2]
[349882586,1737477034868,-500.0,0.00019178,2]
[349882587,1737477034877,-505.29197879,0.00019178,2]
[349882588,1737477034887,-501.55883974,0.00019178,2]
[349882589,1737477034896,-500.0,0.00019178,2]
[349882590,1737477034906,-572.3,0.00019178,2]
[349882591,1737477034916,-500.0,0.00019178,2]
[349882592,1737477034926,-501.37636872,0.00019178,2]
[349882593,1737477034936,-500.0,0.00019178,2]
[349882594,1737477034949,-500.0,0.00019178,2]
[349882595,1737477034958,-540.57,0.00019178,2]
[349882596,1737477034968,-500.0,0.00019178,2]
[349882597,1737477034978,-500.0,0.00019178,2]
[349882598,1737477034987,-500.0,0.00019178,2]
[349882599,1737477034997,-500.0,0.00019178,2]
[349882600,1737477035007,-500.5549151,0.00019178,2]
[349882601,1737477035017,-500.0,0.00019178,2]
[349882602,1737477035027,-500.0,0.00019178,2]
[349882603,1737477035036,-500.0,0.00019178,2]
[349882604,1737477035046,-500.0,0.00019178,2]
[349882605,1737477035055,-500.80078046,0.00019178,2]
[349882606,1737477035065,-500.0,0.00019178,2]
[349882607,1737477035074,-500.0,0.00019178,2]
[349882608,1737477035084,-542.72,0.00019178,2]
[349882609,1737477035093,-500.0,0.00019178,2]
[349882610,1737477035102,-500.0,0.00019178,2]
[349882611,1737477035115,-500.0,0.00019178,2]
[349882612,1737477035124,-500.0,0.00019178,2]
[349882613,1737477035134,-500.0,0.00019178,2]
[349882614,1737477035143,-597.04,0.00019178,2]
[349882615,1737477035153,-500.91694964,0.00019178,2]
[349882616,1737477035163,-500.0,0.00019178,2]
[349882617,1737477035172,-500.0,0.00019178,2]
[349882618,1737477035182,-500.0,0.00019178,2]
[349882619,1737477035196,-500.0,0.00019178,2]
[349882620,1737477035205,-500.0,0.00019178,2]
[349882621,1737477035215,-500.0,0.00019178,2]
[349882622,1737477035224,-500.0,0.00019178,2]
[349882623,1737477035233,-500.48261642,0.00019178,2]
[349882624,1737477035243,-502.02596641,0.00019178,2]
[349882625,1737477035252,-500.0,0.00019178,2]
[349882626,1737477035263,-500.0,0.00019178,2]
[349882627,1737477035273,-500.0,0.00019178,2]
[349882628,1737477035282,-500.0,0.00019178,2]
[349882629,1737477035292,-500.0,0.00019178,2]
[349882630,1737477035302,-500.30481047,0.00019178,2]
[349882631,1737477035312,-500.0,0.00019178,2]
[349882632,1737477035321,-500.0,0.00019178,2]
[349882633,1737477035330,-500.0,0.00019178,2]
[349882634,1737477035340,-500.0,0.00019178,2]
[349882635,1737477035349,-500.0,0.00019178,2]
[349882636,1737477035358,-500.82902876,0.00019178,2]